fUSD/lending_fUSD_20241021
["ID","MTS","AMOUNT","RATE_DAILY","PERIOD"]
[340607337,1729527830001,-500.0,0.00038873,2]
[340607338,1729527830025,-500.0,0.00038873,5]
[340607339,1729527830051,-150.0,0.00038874,2]
[340607340,1729527830076,-8016.16427211,0.00038889,8]
[340607341,1729527830100,-173.64348996,0.0003889,2]
[340607342,1729527830123,-151.48,0.0003889,2]
[340607343,1729527830151,-66801.3689343,0.0003889,8]
[340607344,1729527830175,-16062.3804557,0.0003889,8]
[340607345,1729527830200,-150.0,0.00038891,2]
[340607346,1729527830224,-150.0,0.00038899,2]
[340607347,1729527830248,-500.0,0.00038899,3]
[340607348,1729527830276,-461.81577032,0.00038899,3]
[340607349,1729527830299,-477.0107986,0.00038899,3]
[340607350,1729527830324,-500.0,0.00038899,3]
[340607351,1729527830349,-500.0,0.00038899,3]
[340607352,1729527830373,-500.0,0.00038899,3]
[340607353,1729527830398,-500.0,0.00038899,3]
[340607354,1729527830422,-500.0,0.00038899,3]
[340607355,1729527830453,-500.0,0.00038899,3]
[340607356,1729527830478,-500.0,0.00038899,3]
[340607357,1729527830502,-500.0,0.00038899,3]
[340607358,1729527830527,-2454.76572944,0.00038899,120]
[340607359,1729527830550,-500.0,0.00038899,3]
[340607360,1729527830574,-506.69916886,0.00038899,3]
[340607361,1729527830598,-500.0,0.00038899,3]
[340607362,1729527830622,-500.0,0.00038899,3]
[340607363,1729527830645,-532.80686677,0.00038899,3]
[340607364,1729527830669,-700.0,0.00038899,3]
[340607365,1729527830692,-500.0,0.00038899,3]
[340607366,1729527830714,-501.2832659,0.00038899,3]
[340607367,1729527830738,-500.0,0.00038899,3]
[340607368,1729527830763,-500.0,0.00038899,3]
[340607369,1729527830826,-225.68054611,0.00038899,3]
[340607370,1729527830893,-500.0,0.00038899,3]
[340607371,1729527830989,-7500.0,0.000389,2]
[340607372,1729527831044,-245000.0,0.000389,2]
[340607373,1729527831068,-1000.0,0.000389,2]
[340607374,1729527831092,-37649.8576,0.000389,2]
[340607375,1729527831117,-26135.6358,0.000389,2]
[340607376,1729527831141,-100000.0,0.000389,2]
[340607377,1729527831166,-4333.3279,0.000389,2]
[340607378,1729527831189,-11218.6836,0.000389,2]
[340607379,1729527831216,-150.0,0.00038903,2]
[340607380,1729527831241,-150.0,0.00038905,2]
[340607381,1729527831268,-150.0,0.00038916,2]
[340607382,1729527831293,-150.0,0.00038918,2]
[340607383,1729527831317,-996.77205123,0.00038919,2]
[340607384,1729527831341,-150.0,0.0003892,2]
[340607385,1729527831367,-150.0,0.00038924,2]
[340607386,1729527831392,-150.0,0.00038928,2]
[340607387,1729527831418,-150.0,0.00038929,2]
[340607388,1729527831444,-150.0,0.00038933,2]
[340607389,1729527831470,-150.0,0.00038938,2]
[340607390,1729527831495,-150.0,0.00038945,2]
[340607391,1729527831520,-150.0,0.00038956,2]
[340607392,1729527831544,-150.0,0.00038959,2]
[340607393,1729527831567,-150.0,0.00038963,2]
[340607394,1729527831592,-150.0,0.00038965,2]
[340607395,1729527831617,-150.0,0.0003897,2]
[340607396,1729527831642,-150.0,0.00038977,2]
[340607397,1729527831669,-1606.23804557,0.0003898,8]
[340607398,1729527831809,-6424.95218228,0.00038989,8]
[340607399,1729527831836,-151.48,0.0003899,2]
[340607400,1729527831862,-14456.1424101,0.0003899,8]
[340607401,1729527831887,-6424.95218228,0.0003899,8]
[340607402,1729527831911,-151.48,0.00038991,2]
[340607403,1729527831936,-150.0,0.00038993,2]
[340607404,1729527831960,-506.81823127,0.00038997,15]
[340607405,1729527831984,-233.31396391,0.00038998,3]
[340607406,1729527832007,-500.0,0.00038998,3]
[340607407,1729527832031,-500.0,0.00038998,3]
[340607408,1729527832054,-500.0,0.00038998,3]
[340607409,1729527832077,-500.0,0.00038998,3]
[340607410,1729527832102,-643.67,0.00038998,3]
[340607411,1729527832126,-500.0,0.00038998,3]
[340607412,1729527832150,-500.0,0.00038998,3]
[340607413,1729527832173,-500.0,0.00038998,3]
[340607414,1729527832196,-500.0,0.00038998,3]
[340607415,1729527832219,-500.0,0.00038998,3]
[340607416,1729527832243,-500.0,0.00038998,3]
[340607417,1729527832267,-500.0,0.00038998,3]
[340607418,1729527832293,-647.64966326,0.00038998,3]
[340607419,1729527832317,-500.0,0.00038998,3]
[340607420,1729527832342,-500.0,0.00038998,3]
[340607421,1729527832367,-500.0,0.00038998,3]
[340607422,1729527832390,-503.23,0.00038998,3]
[340607423,1729527832415,-500.0,0.00038998,3]
[340607424,1729527832441,-500.0,0.00038998,3]
[340607425,1729527832466,-578.19940149,0.00038998,3]
[340607426,1729527832491,-500.0,0.00038998,3]
[340607427,1729527832515,-500.0,0.00038998,3]
[340607428,1729527832539,-500.0,0.00038998,3]
[340607429,1729527832563,-500.0,0.00038998,3]
[340607430,1729527832588,-150.0,0.00038998,2]
[340607431,1729527832612,-500.0,0.00038998,3]
[340607432,1729527832636,-500.0,0.00038998,3]
[340607433,1729527832660,-500.0,0.00038998,3]
[340607434,1729527832684,-500.0,0.00038998,3]
[340607435,1729527832707,-500.0,0.00038998,3]
[340607436,1729527832731,-500.0,0.00038998,3]
[340607437,1729527832755,-333.31162674,0.00038999,3]
[340607438,1729527832780,-424.17392624,0.00038999,2]
[340607439,1729527832803,-572.48,0.00038999,3]
[340607440,1729527832827,-533.08,0.00038999,3]
[340607441,1729527832851,-500.0,0.00038999,3]
[340607442,1729527832875,-500.0,0.00038999,3]
[340607443,1729527832902,-500.0,0.00038999,3]
[340607444,1729527832925,-154.69,0.00038999,3]
[340607445,1729527832949,-500.0,0.00038999,3]
[340607446,1729527832973,-500.0,0.00038999,3]
[340607447,1729527832998,-500.0,0.00038999,3]
[340607448,1729527833021,-500.0,0.00038999,3]
[340607449,1729527833044,-500.0,0.00038999,3]
[340607450,1729527833067,-500.0,0.00038999,3]
[340607451,1729527833093,-500.0,0.00038999,3]
[340607452,1729527833117,-500.0,0.00038999,3]
[340607453,1729527833141,-508.58,0.00038999,3]
[340607454,1729527833171,-621.72,0.00038999,3]
[340607455,1729527833195,-500.0,0.00038999,3]
[340607456,1729527833219,-500.0,0.00038999,3]
[340607457,1729527833243,-500.0,0.00038999,3]
[340607458,1729527833267,-500.0,0.00038999,3]
[340607459,1729527833306,-500.0,0.00038999,3]
[340607460,1729527833337,-500.0,0.00038999,3]
[340607461,1729527833366,-500.0,0.00038999,3]
[340607462,1729527833390,-500.0,0.00038999,3]
[340607463,1729527833416,-500.0,0.00038999,3]
[340607464,1729527833441,-500.0,0.00038999,3]
[340607465,1729527833467,-500.0,0.00038999,3]
[340607466,1729527833491,-500.0,0.00038999,3]
[340607467,1729527833514,-500.0,0.00038999,3]
[340607468,1729527833538,-500.0,0.00038999,3]
[340607469,1729527833562,-632.67,0.00038999,3]
[340607470,1729527833585,-500.0,0.00038999,3]
[340607471,1729527833609,-500.0,0.00038999,3]
[340607472,1729527833633,-500.0,0.00038999,3]
[340607473,1729527833657,-500.0,0.00038999,3]
[340607474,1729527833680,-500.0,0.00038999,3]
[340607475,1729527833704,-500.0,0.00038999,3]
[340607476,1729527833728,-500.0,0.00038999,3]
[340607477,1729527833759,-500.0,0.00038999,3]
[340607478,1729527833783,-500.0,0.00038999,3]
[340607479,1729527833806,-500.0,0.00038999,3]
[340607480,1729527833830,-500.0,0.00038999,3]
[340607481,1729527833854,-500.0,0.00038999,3]
[340607482,1729527833877,-502.13,0.00038999,3]
[340607483,1729527833901,-626.27,0.00038999,3]
[340607484,1729527833924,-500.0,0.00038999,3]
[340607485,1729527833950,-500.0,0.00038999,3]
[340607486,1729527833974,-634.88162733,0.00038999,3]
[340607487,1729527834002,-375.0,0.00038999,2]
[340607488,1729527834026,-500.0,0.00038999,3]
[340607489,1729527834050,-500.0,0.00038999,3]
[340607490,1729527834073,-500.0,0.00038999,3]
[340607491,1729527834096,-564.31,0.00038999,3]
[340607492,1729527834119,-150.0,0.00038999,30]
[340607493,1729527834142,-604.30259784,0.00038999,3]
[340607494,1729527834167,-500.0,0.00038999,3]
[340607495,1729527834190,-500.0,0.00038999,3]
[340607496,1729527834214,-500.0,0.00038999,3]
[340607497,1729527834237,-500.0,0.00038999,3]
[340607498,1729527834262,-372.76937594,0.00038999,3]
[340607499,1729527834290,-500.0,0.00038999,3]
[340607500,1729527834315,-500.0,0.00038999,3]
[340607501,1729527834338,-200.0,0.00038999,3]
[340607502,1729527834363,-500.0,0.00038999,3]
[340607503,1729527834386,-500.0,0.00038999,3]
[340607504,1729527834411,-500.0,0.00038999,3]
[340607505,1729527834435,-500.0,0.00038999,3]
[340607506,1729527834458,-500.0,0.00038999,3]
[340607507,1729527834497,-500.0,0.00038999,3]
[340607508,1729527834542,-500.0,0.00038999,3]
[340607509,1729527834590,-500.0,0.00038999,3]
[340607510,1729527834639,-500.0,0.00038999,3]
[340607511,1729527834704,-500.0,0.00038999,3]
[340607512,1729527834727,-500.0,0.00038999,3]
[340607513,1729527834752,-500.0,0.00038999,3]
[340607514,1729527834776,-500.0,0.00038999,3]
[340607515,1729527834936,-509.12660941,0.00038999,3]
[340607516,1729527834960,-500.0,0.00038999,3]
[340607517,1729527834985,-500.0,0.00038999,3]
[340607518,1729527835010,-500.0,0.00038999,2]
[340607519,1729527835034,-500.0,0.00038999,2]
[340607520,1729527835059,-544.53531454,0.00038999,2]
[340607521,1729527835084,-500.0,0.00038999,3]
[340607522,1729527835110,-500.0,0.00038999,3]
[340607523,1729527835134,-500.0,0.00038999,3]
[340607524,1729527835159,-442.95,0.00038999,3]
[340607525,1729527835182,-500.0,0.00038999,3]
[340607526,1729527835205,-500.0,0.00038999,3]
[340607527,1729527835229,-289.2,0.00038999,3]
[340607528,1729527835253,-515.31120146,0.00038999,3]
[340607529,1729527835280,-500.0,0.00038999,3]
[340607530,1729527835303,-500.0,0.00038999,3]
[340607531,1729527835326,-500.0,0.00038999,3]
[340607532,1729527835349,-500.0,0.00038999,3]
[340607533,1729527835374,-500.0,0.00038999,3]
[340607534,1729527835396,-235.61,0.00038999,3]
[340607535,1729527835420,-500.0,0.00038999,3]
[340607536,1729527835443,-500.0,0.00038999,3]
[340607537,1729527835467,-500.0,0.00038999,3]
[340607538,1729527835489,-500.0,0.00038999,3]
[340607539,1729527835512,-500.0,0.00038999,3]
[340607540,1729527835535,-500.0,0.00038999,3]
[340607541,1729527835558,-500.0,0.00038999,3]
[340607542,1729527835581,-552.33345679,0.00038999,3]
[340607543,1729527835604,-500.0,0.00038999,3]
[340607544,1729527835626,-500.0,0.00038999,3]
[340607545,1729527835648,-513.23573081,0.00038999,3]
[340607546,1729527835671,-500.0,0.00038999,3]
[340607547,1729527835694,-500.0,0.00038999,3]
[340607548,1729527835717,-500.0,0.00038999,3]
[340607549,1729527835740,-500.0,0.00038999,3]
[340607550,1729527835762,-268.64977326,0.00038999,3]
[340607551,1729527835785,-500.0,0.00038999,3]
[340607552,1729527835807,-500.0,0.00038999,3]
[340607553,1729527835831,-500.0,0.00038999,3]
[340607554,1729527835854,-500.0,0.00038999,3]
[340607555,1729527835878,-454.88839338,0.00038999,3]
[340607556,1729527835901,-500.0,0.00038999,3]
[340607557,1729527835924,-513.68642038,0.00038999,3]
[340607558,1729527835946,-500.0,0.00038999,3]
[340607559,1729527835970,-500.0,0.00038999,3]
[340607560,1729527835993,-500.0,0.00038999,3]
[340607561,1729527836015,-500.0,0.00038999,3]
[340607562,1729527836037,-500.0,0.00038999,3]
[340607563,1729527836060,-500.0,0.00038999,3]
[340607564,1729527836082,-500.0,0.00038999,3]
[340607565,1729527836105,-500.0,0.00038999,3]
[340607566,1729527836128,-501.42035115,0.00038999,3]
[340607567,1729527836150,-500.0,0.00038999,3]
[340607568,1729527836175,-500.0,0.00038999,3]
[340607569,1729527836200,-500.0,0.00038999,3]
[340607570,1729527836224,-500.0,0.00038999,3]
[340607571,1729527836248,-502.0190816,0.00038999,3]
[340607572,1729527836274,-500.0,0.00038999,3]
[340607573,1729527836297,-500.0,0.00038999,3]
[340607574,1729527836322,-500.0,0.00038999,3]
[340607575,1729527836345,-500.0,0.00038999,3]
[340607576,1729527836368,-593.2,0.00038999,3]
[340607577,1729527836391,-500.0,0.00038999,3]
[340607578,1729527836415,-458.82,0.00038999,3]
[340607579,1729527836440,-500.0,0.00038999,3]
[340607580,1729527836465,-500.0,0.00038999,3]
[340607581,1729527836488,-500.0,0.00038999,3]
[340607582,1729527836512,-500.0,0.00038999,3]
[340607583,1729527836536,-500.0,0.00038999,3]
[340607584,1729527836560,-500.0,0.00038999,3]
[340607585,1729527836583,-216.7880871,0.00038999,3]
[340607586,1729527836606,-472.83985756,0.00038999,3]
[340607587,1729527836629,-500.0,0.00038999,3]
[340607588,1729527836652,-500.0,0.00038999,3]
[340607589,1729527836676,-500.0,0.00038999,3]
[340607590,1729527836700,-500.0,0.00038999,3]
[340607591,1729527836723,-506.04677184,0.00038999,3]
[340607592,1729527836748,-500.0,0.00038999,3]
[340607593,1729527836772,-523.71,0.00038999,3]
[340607594,1729527836795,-500.0,0.00038999,3]
[340607595,1729527836819,-500.0,0.00038999,3]
[340607596,1729527836844,-500.0,0.00038999,3]
[340607597,1729527836868,-500.0,0.00038999,3]
[340607598,1729527836892,-500.0,0.00038999,3]
[340607599,1729527836917,-500.0,0.00038999,3]
[340607600,1729527836942,-500.0,0.00038999,3]
[340607601,1729527836966,-500.0,0.00038999,3]
[340607602,1729527836990,-500.0,0.00038999,3]
[340607603,1729527837014,-500.0,0.00038999,3]
[340607604,1729527837037,-500.0,0.00038999,3]
[340607605,1729527837061,-500.0,0.00038999,3]
[340607606,1729527837087,-500.0,0.00038999,3]
[340607607,1729527837110,-500.0,0.00038999,3]
[340607608,1729527837134,-546.63066563,0.00038999,3]
[340607609,1729527837157,-500.0,0.00038999,3]
[340607610,1729527837182,-500.0,0.00038999,3]
[340607611,1729527837206,-500.0,0.00038999,3]
[340607612,1729527837236,-500.0,0.00038999,3]
[340607613,1729527837260,-500.0,0.00038999,3]
[340607614,1729527837288,-500.0,0.00038999,3]
[340607615,1729527837315,-500.0,0.00038999,3]
[340607616,1729527837340,-500.0,0.00038999,3]
[340607617,1729527837368,-500.0,0.00038999,3]
[340607618,1729527837391,-422.35401937,0.00038999,3]
[340607619,1729527837416,-500.0,0.00038999,3]
[340607620,1729527837441,-500.0,0.00038999,3]
[340607621,1729527837467,-500.0,0.00038999,3]
[340607622,1729527837491,-183.61370075,0.00038999,3]
[340607623,1729527837515,-500.0,0.00038999,3]
[340607624,1729527837539,-567.17240288,0.00038999,3]
[340607625,1729527837563,-500.0,0.00038999,3]
[340607626,1729527837587,-500.0,0.00038999,3]
[340607627,1729527837612,-161.18087938,0.00038999,3]
[340607628,1729527837637,-502.08349207,0.00038999,3]
[340607629,1729527837662,-528.04568364,0.00038999,3]
[340607630,1729527837686,-500.0,0.00038999,3]
[340607631,1729527837710,-477.0,0.00038999,5]
[340607632,1729527837859,-50000.0,0.00039,23]
[340607633,1729527837886,-50000.0,0.00039,25]
[340607634,1729527837914,-50000.0,0.00039,27]
[340607635,1729527837941,-50000.0,0.00039,28]
[340607636,1729527837965,-296010.63352211,0.00039,2]
[340607637,1729527837989,-1335.74693659,0.00039,60]
[340607638,1729527838014,-419.34,0.00039,30]
[340607639,1729527838037,-150.0,0.00039,30]
[340607640,1729527838062,-500.0,0.00039,3]
[340607641,1729527838086,-7385.0772074,0.00039001,2]
[340607642,1729527838111,-40624.1478239,0.00039001,2]
[340607643,1729527838136,-489.6058075,0.00039001,2]
[340607644,1729527838160,-489.6849824,0.00039001,2]
[340607645,1729527838185,-1244.5783528,0.00039001,2]
[340607646,1729527838209,-588.7716106,0.00039001,2]
[340607647,1729527838237,-264.228482,0.00039001,2]
[340607648,1729527838261,-152.0,0.00039009,9]
[340607649,1729527838289,-153.05,0.00039027,2]
[340607650,1729527838313,-218.28,0.00039136,30]
[340607651,1729527838337,-151.0,0.00039205,120]
[340607652,1729527838363,-150.0,0.00039276,120]
[340607653,1729527838389,-158.7705686,0.0003937,30]
[340607654,1729527838415,-572.49475098,0.000394,30]
[340607655,1729527838439,-2838.00410435,0.00039452,30]
[340607656,1729527838465,-1066.41585037,0.00039452,30]
[340607657,1729527838491,-150.0,0.0003954,120]
[340607658,1729527838517,-170.95,0.00039573,2]
[340607659,1729527838542,-1000.0,0.00039665,2]
[340607660,1729527838569,-5632.45900984,0.00039767,15]
[340607661,1729527838593,-2002.04599865,0.000398,120]
[340607662,1729527838617,-412.0,0.00039886,90]
[340607663,1729527838642,-608.8037,0.00039888,7]
[340607664,1729527838669,-158.7705686,0.0003989,30]
[340607665,1729527838694,-5232.16942844,0.000399,15]
[340607666,1729527838718,-334.33130188,0.00039973,2]
[340607667,1729527838743,-412.0,0.00039986,90]
[340607668,1729527838769,-500.0,0.00039989,3]
[340607669,1729527838793,-500.0,0.00039989,3]
[340607670,1729527838818,-500.0,0.00039989,3]
[340607671,1729527838846,-500.0,0.00039989,3]
[340607672,1729527838873,-500.0,0.00039989,3]
[340607673,1729527838897,-500.0,0.00039989,3]
[340607674,1729527838929,-500.0,0.00039989,3]
[340607675,1729527838954,-323.64,0.00039989,3]
[340607676,1729527838978,-270.0694747,0.0003999,120]
[340607677,1729527839003,-531.19,0.00039999,3]
[340607678,1729527839027,-500.0,0.00039999,3]
[340607679,1729527839050,-500.0,0.00039999,3]
[340607680,1729527839074,-181.35736186,0.00039999,3]
[340607681,1729527839098,-500.0,0.00039999,3]
[340607682,1729527839121,-500.0,0.00039999,3]
[340607683,1729527839146,-500.0,0.00039999,3]
[340607684,1729527839175,-335.7249603,0.00039999,3]
[340607685,1729527839201,-500.0,0.00039999,3]
[340607686,1729527839227,-500.0,0.00039999,3]
[340607687,1729527839252,-584.0,0.00039999,3]
[340607688,1729527839278,-500.0,0.00039999,3]
[340607689,1729527839302,-500.0,0.00039999,3]
[340607690,1729527839329,-500.0,0.00039999,3]
[340607691,1729527839354,-500.0,0.00039999,3]
[340607692,1729527839379,-500.0,0.00039999,3]
[340607693,1729527839403,-500.0,0.00039999,3]
[340607694,1729527839429,-500.0,0.00039999,3]
[340607695,1729527839460,-500.0,0.00039999,3]
[340607696,1729527839488,-50000.0,0.0004,30]
[340607697,1729527839517,-50000.0,0.0004,40]
[340607698,1729527839542,-50000.0,0.0004,50]
[340607699,1729527839567,-397.91364366,0.0004,7]
[340607700,1729527839590,-181.47,0.0004,2]
[340607701,1729527839614,-921.51594702,0.0004,7]
[340607702,1729527839638,-372.1860667,0.0004,2]
[340607703,1729527839663,-208.68702245,0.0004,2]
[340607704,1729527839687,-367.5,0.0004,7]
[340607705,1729527839711,-160.0,0.0004,25]
[340607706,1729527839735,-192.26319182,0.0004,5]
[340607707,1729527839759,-1309.718591,0.0004,7]
[340607708,1729527839783,-1335.82296097,0.0004,15]
[340607709,1729527839806,-1000.0,0.0004,20]
[340607710,1729527839853,-200.0,0.0004,30]
[340607711,1729527839901,-477.12749073,0.0004,30]
[340607712,1729527839948,-982.78321207,0.0004,120]
[340607713,1729527839996,-2966.46483248,0.0004,30]
[340607714,1729527840043,-402.30647652,0.0004,30]
[340607715,1729527840089,-1493.63042252,0.0004,30]
[340607716,1729527840136,-862.71235893,0.0004,30]
[340607717,1729527840185,-187.20593615,0.0004,30]
[340607718,1729527840233,-2153.87275317,0.0004,120]
[340607719,1729527840281,-649.8340886,0.0004,30]
[340607720,1729527840328,-2113.56252101,0.0004,120]
[340607721,1729527840363,-2625.21812431,0.0004,120]
[340607722,1729527840387,-1173.13805303,0.0004,120]
[340607723,1729527840414,-470.70885823,0.0004,120]
[340607724,1729527840438,-483.028176,0.0004,30]
[340607725,1729527840463,-574.54976674,0.0004,120]
[340607726,1729527840487,-1292.89314684,0.0004,120]
[340607727,1729527840511,-1565.99442797,0.0004,120]
[340607728,1729527840536,-1686.19610062,0.0004,120]
[340607729,1729527840560,-1008.0,0.0004,30]
[340607730,1729527840583,-500.0,0.0004,120]
[340607731,1729527840607,-3000.0,0.0004,80]
[340607732,1729527840630,-2082.0,0.0004,120]
[340607733,1729527840654,-26636.96162615,0.0004,120]
[340607734,1729527840681,-33800.0,0.0004,30]
[340607735,1729527840704,-7174.48176192,0.0004,14]
[340607736,1729527840728,-500.0,0.0004,120]
[340607737,1729527840752,-1000.0,0.0004,35]
[340607738,1729527840780,-2000.0,0.0004,120]
[340607739,1729527840806,-250.0,0.0004,30]
[340607740,1729527840831,-1000.0,0.0004,2]
[340607741,1729527840856,-250.0,0.0004,120]
[340607742,1729527840880,-250.0,0.0004,120]
[340607743,1729527840905,-1000.0,0.0004,2]
[340607744,1729527841356,1247.48,0.00038989,10]
[340607745,1729527841386,500.0,0.00024913,2]
[340607746,1729527841432,504.56783957,0.00038899,3]
[340607747,1729527842447,1000.0,0.0004,2]
[340607748,1729527844888,1039.57,0.0003999,10]
[340607749,1729527881358,500.0,0.00024905,2]
[340607750,1729527908207,1225.58746488,0.00011,2]
[340607751,1729527908241,25000.0,0.00011,2]
[340607752,1729527908271,25000.0,0.00011,2]
[340607753,1729527908309,25000.0,0.00011,2]
[340607754,1729527908338,24693.55,0.00011,2]
[340607756,1729528004841,-354.77276189,0.00010999,2]
[340607757,1729528004868,-5240412.05248405,0.00011,2]
[340607776,1729528232055,-657.36,0.000145,3]
[340607777,1729528232067,-332.82649927,0.000145,3]
[340607778,1729528232079,-9367.31233234,0.000145,3]
[340607779,1729528232088,-1061.61,0.0002,2]
[340607780,1729528232098,-200.000001,0.000245,2]
[340607781,1729528232108,-500.0,0.00024843,2]
[340607782,1729528232117,-500.0,0.00024852,2]
[340607783,1729528232128,-500.0,0.00024861,2]
[340607784,1729528232137,-500.0,0.00024869,2]
[340607785,1729528232147,-500.0,0.00024878,2]
[340607786,1729528232157,-500.0,0.00024887,2]
[340607787,1729528232167,-500.0,0.00024896,2]
[340607788,1729528232178,-300.0,0.000249,2]
[340607789,1729528232189,-69971.56156682,0.0002495,2]
[340607790,1729528232199,-447.15532348,0.00025,7]
[340607791,1729528232208,-2000.0,0.000301,30]
[340607792,1729528232218,-151.0,0.000321,2]
[340607793,1729528232227,-1461.0,0.000342,30]
[340607794,1729528232237,-840.0,0.0003507,2]
[340607795,1729528232246,-250.0,0.00036471,2]
[340607796,1729528232256,-235.31,0.00036616,2]
[340607797,1729528232266,-250.0,0.00036825,2]
[340607798,1729528232275,-150.0,0.00038005,120]
[340607799,1729528232285,-150.0,0.00038375,120]
[340607800,1729528232296,-1461.37739482,0.000384,30]
[340607801,1729528232305,-501.97080821,0.00038799,3]
[340607802,1729528232315,-170.95,0.00038815,2]
[340607803,1729528232324,-235.31,0.0003888,2]
[340607804,1729528232333,-611.0528119,0.00038899,3]
[340607805,1729528232343,-500.0,0.00038899,3]
[340607806,1729528232352,-840.0,0.00039454,2]
[340607807,1729528232362,-159.14,0.00039502,2]
[340607808,1729528232373,-1000.0,0.00039704,7]
[340607809,1729528232382,-452.46,0.00039792,120]
[340607810,1729528232391,-417.78,0.00039834,10]
[340607811,1729528232401,-796.67,0.00039834,10]
[340607812,1729528232411,-446.43,0.00039844,2]
[340607813,1729528232420,-150.0,0.00039844,2]
[340607814,1729528232430,-422.17,0.00039844,2]
[340607815,1729528232442,-535.49,0.00039844,2]
[340607816,1729528232452,-300.0,0.00039844,2]
[340607817,1729528232462,-535.69,0.00039844,2]
[340607818,1729528232471,-150.0,0.00039844,2]
[340607819,1729528232481,-429.99,0.00039844,2]
[340607820,1729528232491,-718.84,0.00039844,2]
[340607821,1729528232501,-419.84,0.00039844,2]
[340607822,1729528232510,-429.99,0.00039844,2]
[340607823,1729528232520,-150.0,0.00039844,2]
[340607824,1729528232529,-535.69,0.00039844,2]
[340607825,1729528232539,-150.0,0.00039844,2]
[340607826,1729528232548,-535.69,0.00039844,2]
[340607827,1729528232558,-429.99,0.00039844,2]
[340607828,1729528232568,-534.89,0.00039844,2]
[340607829,1729528232578,-375.0,0.00039999,2]
[340607830,1729528232587,-2500.0,0.0004,120]
[340607831,1729528232599,-1280.0,0.0004,120]
[340607832,1729528232608,-261.7623495,0.00040011,2]
[340607833,1729528232617,-793.67145372,0.00040021,15]
[340607834,1729528232630,-3712.29575417,0.00040021,15]
[340607835,1729528232639,-481.6905136,0.00040038,2]
[340607836,1729528232649,-698.6925936,0.00040038,2]
[340607837,1729528232658,-330.5299041,0.00040038,2]
[340607838,1729528232668,-3644.5572159,0.00040065,2]
[340607839,1729528232678,-28420.2020579,0.00040093,2]
[340607840,1729528232689,-150.0,0.00040118,2]
[340607841,1729528232701,-150.0,0.00040118,2]
[340607842,1729528232711,-150.0,0.00040118,2]
[340607843,1729528232720,-150.0,0.00040118,2]
[340607844,1729528232731,-36827.581464,0.00040121,120]
[340607845,1729528235633,-518.34734357,0.00040121,120]
[340607846,1729528235693,-32649.7018848,0.00040121,120]
[340607847,1729528235705,-2741.12350871,0.00040121,120]
[340607848,1729528235723,-450.0,0.00040093,2]
[340607849,1729528235732,-1000.0,0.00040118,2]
[340607850,1729528235742,-2263.24579892,0.00040121,120]
[340607851,1729528235751,-74.85074378,0.00040121,2]
[340607852,1729528235763,-86.18998912,0.00040121,2]
[340607853,1729528235772,-584.99298698,0.00040121,12]
[340607875,1729528237923,-375.60414898,0.00040121,12]
[340607876,1729528237933,-1000.0,0.00040121,120]